Cogmind - Beta 11.1 *** ADVENTURER MODE // 2022.05.17 @ 17:59:32 Player: Fgdfgfthgr Result: Destroyed by G-47 Trooper with Particle Gun Performance ------------- Evolutions (3) 1500 Regions Visited (9) 1800 Robots Destroyed (179) 895 Value Destroyed (4693) 4693 Prototype IDs (63) 1260 Alien Tech Used (0) 0 Bonus (-1093) -1093 TOTAL SCORE: 9055 Bonus ------- High Alert Combat Kills 39 Follower Combat Kills 34 Aligned with FarCom 300 Friendly Fire -1466 Cogmind --------- Core Integrity 0/700 Matter 176/300 Energy 103/150 System Corruption 1% Temperature Cool (75) Movement Core (1150) Ox22 Location -7/Lower Caves Parts ------- > --- POWER (1) -------- Micro Nuclear Core > --- PROPULSION (3) --- (None) > --- UTILITY (7) ------ Experimental Heat Sink High-capacity Storage Unit Advanced Visual Processing Unit Experimental Signal Interpreter Improved Utility Shielding Thief Drone Bay (0/3) > --- WEAPON (2) ------- Advanced Beam Rifle Heavy Neutron Cannon > --- INVENTORY (20) --- Fusion Reactor Fusion Reactor Improved Treads Advanced Targeting Computer Advanced Weapon Cycler Hardened Medium Armor Plating AS-neutralizer No. 17b Heavy Particle Gun Cooled Proton Cannon Plasma Cannon Heavy Neutron Cannon Autogun Minigun Minigun 8R-AWN's Boregun 8R-AWN's Boregun Improved Grenade Launcher Datajack Peak State ------------ > --- POWER ------------ Fusion Reactor > --- PROPULSION ------- Enhanced Armored Medium Treads Advanced Myomer Leg Advanced Myomer Leg > --- UTILITY ---------- Experimental Heat Sink High-capacity Storage Unit Advanced Visual Processing Unit Improved Sensor Array Experimental Signal Interpreter Hardened Medium Armor Plating System Shield > --- WEAPON ----------- Heavy Neutron Cannon Light Antimatter Cannon > --- INVENTORY -------- Micro Nuclear Core Fusion Reactor Fusion Reactor Advanced Targeting Computer Advanced Weapon Cycler Improved Utility Shielding Thief Drone Bay AS-neutralizer No. 17b Heavy Particle Gun Advanced Beam Rifle Cooled Proton Cannon Cooled Proton Cannon Plasma Cannon Heavy Neutron Cannon Minigun Minigun 8R-AWN's Boregun 8R-AWN's Boregun Improved Grenade Launcher Datajack [Rating: 86] Favorites ----------- Power Cooled Ion Engine Engine Cooled Ion Engine Power Core Micro Nuclear Core Reactor Fusion Reactor Propulsion Light Treads Treads Light Treads Leg Advanced Myomer Leg Utility Huge Storage Unit Device Heat Sink Storage Huge Storage Unit Processor Advanced Visual Processing Unit Hackware System Shield Protection Medium Armor Plating Weapon Minigun Energy Gun Heavy EM Pulse Gun Energy Cannon Heavy Particle Cannon Ballistic Gun Minigun Ballistic Cannon Light Antimatter Cannon Launcher Improved Grenade Launcher Special Weapon Plasma Cutter Special Melee Weapon Datajack Build | -11 -10 -10 -9 -9 -9 -8 -8 -7 -7 ------- Run | Scr Mat Min Mat Min Exi Min Mat Fac Low Slots Evolved 6 | . . . 2 . . . 2 2 . Power . | . . . . . . . . . . Propulsion 1 | . . . 1 . . . . . . Utility 5 | . . . 1 . . . 2 2 . Weapon . | . . . . . . . . . . Parts Attached 125 | . 8 2 33 2 10 3 26 33 8 Power 8 | . 1 . 4 . . . 1 1 1 Engine 6 | . 1 . 4 . . . 1 . . Core 1 | . . . . . . . . . 1 Reactor 1 | . . . . . . . . 1 . Propulsion 34 | . 3 . 13 . 2 . 10 6 . Treads 28 | . 2 . 13 . 2 . 10 1 . Leg 6 | . 1 . . . . . . 5 . Wheel . | . . . . . . . . . . Hover . | . . . . . . . . . . Flight . | . . . . . . . . . . Utility 35 | . 2 . 8 2 2 2 8 9 2 Device 13 | . 1 . 3 1 1 1 2 3 1 Storage 3 | . 1 . 1 . . . . 1 . Processor 4 | . . . 1 . . . 1 2 . Hackware 1 | . . . . . . . 1 . . Protection 14 | . . . 3 1 1 1 4 3 1 Artifact . | . . . . . . . . . . Weapon 48 | . 2 2 8 . 6 1 7 17 5 Energy Gun 5 | . 1 1 . . . . 1 1 1 Energy Cannon 17 | . . . 1 . . 1 4 9 2 Ballistic Gun 12 | . 1 1 5 . 3 . 1 1 . Ballistic Cannon 2 | . . . . . . . . 1 1 Launcher 10 | . . . 2 . 1 . 1 5 1 Special Weapon 1 | . . . . . 1 . . . . Impact Weapon . | . . . . . . . . . . Slashing Weapon . | . . . . . . . . . . Piercing Weapon . | . . . . . . . . . . Special Melee Weapon 1 | . . . . . 1 . . . . Unidentified Prototypes 13 | . . . 3 1 . . 1 8 . Parts Lost 14 | . . . 2 . . 1 2 6 3 Power 1 | . . . . . . . . . 1 Propulsion 4 | . . . . . . . 1 2 1 Utility 5 | . . . 1 . . 1 1 2 . Weapon 4 | . . . 1 . . . . 2 1 Highest Loss Streak 3 | . . . 1 . . 1 2 2 3 To Critical Strikes . | . . . . . . . . . . Average Slot Usage (%) 96 | . 99 100 99 100 100 99 98 97 62 Engine 10 | . 14 14 11 11 11 11 9 5 . Treads 26 | . 19 28 33 33 33 33 27 . . Leg 2 | . 8 . . . . . . 22 6 Device 11 | . 13 14 14 11 9 10 10 13 7 Storage 10 | . 14 14 11 11 11 11 9 7 7 Processor 3 | . . . . . . . 7 14 15 Hackware 1 | . . . . . . . 6 7 . Protection 7 | . . . 6 11 12 11 9 6 7 Energy Gun 2 | . 13 12 . . . . . 1 . Energy Cannon 7 | . . . 4 11 1 8 16 10 6 Ballistic Gun 10 | . 14 16 17 11 14 13 1 . . Naked Turns . | . . . . . . . . . . Heaviest Build 109 | 12 32 32 103 103 108 104 109 85 72 Greatest Support 77 | 20 40 40 63 63 63 63 63 77 30 Greatest Overweight (x) 22 | . . . 1 1 1 1 1 2 22 Average Overweight (x) . | . . . . 1 1 1 1 . 1 Largest Inventory Capacity 25 | . 15 15 25 25 25 25 25 25 20 Average Capacity 22 | . 12 15 24 25 25 25 25 20 20 Most Carried 25 | . 15 15 25 25 25 25 25 25 20 Average Carried 21 | . 11 13 24 24 23 24 24 19 19 Final Capacity 25 | 8 15 15 25 25 25 25 25 20 20 Final Carried 25 | 6 15 14 25 25 25 24 25 20 18 Class Distribution -------------------- 68% | Mutant 14% | Hacker-Mutant 12% | Scavenger-Mutant 4% | Hacker-Skirmisher Dominant Class ---------------- Mutant | -10/Materials Mutant | -10/Mines Mutant | -9/Materials Mutant | -9/Mines Mutant | -9/Exiles Mutant | -8/Mines Hacker-Mutant | -8/Materials Hacker-Skirmisher | -7/Factory Mutant | -7/Lower Caves Resources | -11 -10 -10 -9 -9 -9 -8 -8 -7 -7 ----------- Run | Scr Mat Min Mat Min Exi Min Mat Fac Low Matter Collected 3182 | 200 225 104 936 31 216 439 427 410 194 Remotely . | . . . . . . . . . . Salvage Created 6360 | . 709 346 1538 11 27 602 1753 1006 368 Parts 374 | . 46 16 123 2 1 26 100 54 6 Haulers Intercepted 16 | . 2 . 5 . . . 5 4 . Recyclers Shooed 4 | . . . . . . 1 1 2 . Parts Field Recycled . | . . . . . . . . . . Retrieved Matter . | . . . . . . . . . . Parts Self-Destructed 5 | . . . . . . . . . 5 Prevented . | . . . . . . . . . . Kills | -11 -10 -10 -9 -9 -9 -8 -8 -7 -7 ------- Run | Scr Mat Min Mat Min Exi Min Mat Fac Low Combat Hostiles Destroyed 117 | . 10 7 30 1 5 12 29 19 4 Guns 49 | . 10 6 20 1 . 9 3 . . Cannons 41 | . . . 4 . . 3 21 9 4 AOE 26 | . . 1 6 . 5 . 4 10 . Classes Destroyed 18 | . 7 . 3 . 2 2 1 2 1 Worker 13 | . 6 . 1 . . . 2 4 . Builder 11 | . 1 . 3 . . . 3 4 . Tunneler 4 | . 1 1 . . . 1 1 . . Hauler 16 | . 2 . 5 . . . 5 4 . Recycler 5 | . . . 1 . . 1 1 2 . Operator 3 | . . . 1 . . . 1 1 . Watcher 13 | . 3 . 5 . . . 5 . . Swarmer 29 | . 3 3 13 1 . 3 6 . . Grunt 48 | . 7 4 8 . . 5 13 11 . Brawler 2 | . . . . . . . 1 . 1 Duelist 3 | . . . . . . 1 1 . 1 Protector 1 | . . . . . . . . 1 . Sentry 20 | . . . 9 . . . 8 2 1 Specialist 1 | . . . . . . . . 1 . Hunter 7 | . . . . . . 3 . 4 . Behemoth 1 | . . . . . . . . . 1 Zionite 1 | . . . . . 1 . . . . Packrat 3 | . . . . . . . . . 3 Assembled 7 | . . . . . 7 . . . . Best Kill Streak 19 | . 3 3 7 1 5 3 8 19 3 Combat Bots Only 9 | . 3 3 5 1 5 3 5 9 3 Max Kills in Single Turn 4 | . 2 1 3 1 3 1 4 3 1 Gunslinging 1 | . . . 1 . . . . . . Exploded 3 | . . 1 2 . 2 . 3 3 . Melee . | . . . . . . . . . . Uniques/NPCs Destroyed 2 | . . 1 . . 1 . . . . YI-UF0 (-10/Mines) 8R-AWN (-9/Exiles) Combat | -11 -10 -10 -9 -9 -9 -8 -8 -7 -7 -------- Run | Scr Mat Min Mat Min Exi Min Mat Fac Low Damage Taken 5537 | . 261 232 480 8 231 649 907 1947 822 Core 992 | . 37 32 45 8 . 64 99 411 296 Absorbed by Shields 137 | . . . 137 . . . . . . Redirected to Shielding 64 | . . . . . . . . 26 38 Regen/Repaired (Parts) 33 | . . . . . . . 33 . . Core Remaining (%) 81 | 100 . 72 . . . 70 82 . . Volleys Fired 415 | . 45 26 82 6 44 46 87 56 23 Largest 2 | . 2 2 2 2 2 2 2 2 2 Hottest 171 | . 68 68 93 93 58 93 150 170 171 Shots Fired 747 | . 90 40 160 12 45 92 173 96 39 Gun 415 | . 90 40 144 6 25 73 27 4 6 Cannon 292 | . . . 12 6 . 19 144 78 33 Launcher 27 | . . . 4 . 7 . 2 14 . Special 13 | . . . . . 13 . . . . Kinetic 364 | . 45 21 144 6 25 73 27 11 12 Thermal 282 | . . . 12 6 13 19 144 65 23 Explosive 27 | . . . 4 . 7 . 2 14 . Electromagnetic 74 | . 45 19 . . . . . 6 4 Robot Hit Streak 28 | . 28 18 16 9 27 22 23 17 27 Robot Miss Streak 3 | . 3 2 2 1 2 2 2 2 1 Penetration Max . | . . . . . . . . . . Secondary Targets 3 | . 1 . 2 . . . . . . Max Gunslinging Chain 1 | . 1 . 1 . . . . . . Shots Hit Robots 566 | . 63 32 114 10 43 78 129 62 35 Core Hits 277 | . 29 13 58 1 15 27 61 62 11 Critical Kills 2 | . . . . . . . 2 . . Critical Parts Destroyed 4 | . 1 . 3 . . . . . . Critical Strikes 18 | . 1 . 3 . 12 . 2 . . Meltdown 1 | . . . . . . . 1 . . Destroy 17 | . 1 . 3 . 12 . 1 . . Melee Attacks 4 | . . . . . 4 . . . . Impact . | . . . . . . . . . . Slashing . | . . . . . . . . . . Piercing . | . . . . . . . . . . Sneak Attacks 4 | . . . . . 4 . . . . Combat Hostiles . | . . . . . . . . . . Follow-up Attacks . | . . . . . . . . . . Damage Inflicted 15669 | . 1030 560 2311 177 960 1228 3710 4151 1542 Guns 5022 | . 912 467 1784 94 390 919 363 33 60 Cannons 6435 | . . . 218 83 . 309 2845 1638 1342 Explosions 4156 | . 118 93 309 . 557 . 502 2437 140 Melee . | . . . . . . . . . . Ramming 43 | . . . . . . . . 43 . Kinetic 4914 | . 429 235 1784 94 390 919 363 262 438 Thermal 5828 | . 118 93 218 83 13 309 2845 1242 907 Explosive 3805 | . . . 309 . 557 . 502 2437 . Electromagnetic 1079 | . 483 232 . . . . . 167 197 Impact . | . . . . . . . . . . Slashing . | . . . . . . . . . . Piercing . | . . . . . . . . . . Highest Corruption 2 | . . . . . . . 2 1 1 Average Corruption 1 | . . . . . . . 1 1 1 Corruption Purged . | . . . . . . . . . . Corruption Blocked . | . . . . . . . . . . Effects 25 | . . . . . . . 16 1 8 Message Errors 5 | . . . . . . . 3 1 1 Matter Fused 11 | . . . . . . . 7 . 4 Heat Flow Errors 2 | . . . . . . . 1 . 1 Energy Discharges 1 | . . . . . . . 1 . . Data Loss (minor) 2 | . . . . . . . 1 . 1 Data Loss (major) 3 | . . . . . . . 2 . 1 Misfires 1 | . . . . . . . 1 . . Overload Shots . | . . . . . . . . . . Overflow Damage 423 | . 17 14 2 . 48 . 120 94 128 Projectiles 223 | . . . . . . . 58 37 128 Explosions 200 | . 17 14 2 . 48 . 62 57 . Melee . | . . . . . . . . . . Knockbacks 5 | . . . . . . . . 4 1 Impact 2 | . . . . . . . . 2 . Kinetic 3 | . . . . . . . . 2 1 Secondary . | . . . . . . . . . . Self-Inflicted Damage 199 | . 16 68 12 . 70 . . 33 . Shots 10 | . 2 2 1 . 2 . . 3 . Rammed . | . . . . . . . . . . Targets Rammed 6 | . . . . . . . . 6 . Kicked 6 | . . . . . . . . 6 . Crushed . | . . . . . . . . . . Highest Temperature 401 | . 23 36 83 28 . 48 318 285 401 Average Temperature 73 | . 8 10 15 21 . 15 90 87 156 Received Heat Transfer 1953 | . 159 114 162 . . 135 477 651 255 Effects 4 | . . . . . . . 2 1 1 Energy Bleed 2 | . . . . . . . 1 1 . Interference 1 | . . . . . . . 1 . . Damage (minor) 1 | . . . . . . . . . 1 Siege Activations . | . . . . . . . . . . Robots Corrupted 1 | . . 1 . . . . . . . Combat Hostiles . | . . . . . . . . . . Parts Fried 4 | . 4 . . . . . . . . Impact Corruptions . | . . . . . . . . . . Robots Melted 1 | . . . . . . . 1 . . Combat Hostiles 1 | . . . . . . . 1 . . Parts Melted 12 | . 1 1 . . . . 6 4 . Heat Transferred 7465 | . 150 150 370 148 117 555 4181 1583 211 Parts Sabotaged . | . . . . . . . . . . Parts Stolen . | . . . . . . . . . . Parts Stripped . | . . . . . . . . . . Power Chain Reactions 7 | . 3 2 . . . . . . 2 Missiles Intercepted . | . . . . . . . . . . Alert | -11 -10 -10 -9 -9 -9 -8 -8 -7 -7 ------- Run | Scr Mat Min Mat Min Exi Min Mat Fac Low Peak Influence 491 | . 321 127 443 76 . 170 491 382 . Initial 35 | . . 6 . . . . 3 35 . Average 92 | . 75 40 104 12 . 54 145 160 . Maximum Alert Level 2 | . 1 . 2 . . . 2 1 . Low Security (%) 86 | . 95 100 84 100 . 100 71 65 . Level 1 12 | . 4 . 15 . . . 23 34 . Level 2 1 | . . . . . . . 4 . . Level 3 . | . . . . . . . . . . Level 4 . | . . . . . . . . . . Level 5 . | . . . . . . . . . . High Security . | . . . . . . . . . . Max Security . | . . . . . . . . . . Squads Dispatched 15 | . 3 . 3 . . . 3 6 . Investigation 9 | . 3 . 3 . . . 3 . . Extermination 1 | . . . . . . . . 1 . Reinforcement 3 | . . . . . . . . 3 . Assault . | . . . . . . . . . . Garrison 2 | . . . . . . . . 2 . Intercept . | . . . . . . . . . . Searches Triggered . | . . . . . . . . . . Construction Impeded 2 | . . . . . . . . 2 . Haulers Reinforced . | . . . . . . . . . . Active Scanning Responses . | . . . . . . . . . . Cargo Convoy Interrupts 1 | . . . . . . . . 1 . Stealth | -11 -10 -10 -9 -9 -9 -8 -8 -7 -7 --------- Run | Scr Mat Min Mat Min Exi Min Mat Fac Low Distress Signals 3 | . 2 . . . . . 1 . . Communications Jammed . | . . . . . . . . . . Distress Signals . | . . . . . . . . . . Times Spotted 170 | . 17 9 40 3 6 12 42 32 9 Peak Tracking Total 8 | . 5 3 5 3 7 3 5 8 7 Tactical Retreats 3 | . . . . . . . 1 1 1 Traps | -11 -10 -10 -9 -9 -9 -8 -8 -7 -7 ------- Run | Scr Mat Min Mat Min Exi Min Mat Fac Low Traps Triggered 7 | . 2 . . . . . 3 2 . Indirectly . | . . . . . . . . . . Trap Hack Attempts . | . . . . . . . . . . Triggered . | . . . . . . . . . . Disarmed . | . . . . . . . . . . Reprogrammed . | . . . . . . . . . . Reused . | . . . . . . . . . . Traps Extracted . | . . . . . . . . . . Installed . | . . . . . . . . . . Triggered . | . . . . . . . . . . Machines | -11 -10 -10 -9 -9 -9 -8 -8 -7 -7 ---------- Run | Scr Mat Min Mat Min Exi Min Mat Fac Low Machines Disabled 14 | . 1 2 3 . 4 1 2 1 . Max in Single Turn 2 | . 1 1 1 . 2 1 1 1 . Garrison Access 2 | . . . . . . . . 2 . Machines Sabotaged . | . . . . . . . . . . Garrisons Compromised . | . . . . . . . . . . Overloaded Fab Kills . | . . . . . . . . . . Hacking | -11 -10 -10 -9 -9 -9 -8 -8 -7 -7 --------- Run | Scr Mat Min Mat Min Exi Min Mat Fac Low Machines Accessed 43 | . 7 . 15 1 2 . 12 6 . Terminals 28 | . 6 . 12 . . . 7 3 . Fabricators . | . . . . . . . . . . Repair Stations 3 | . . . . . . . 2 1 . Recycling Units 5 | . 1 . 2 . . . 2 . . Scanalyzers 2 | . . . 1 . . . 1 . . Garrison Access 2 | . . . . . . . . 2 . Total Hacks 133 | . 18 . 42 1 2 . 50 20 . Successful 82 | . 8 . 28 1 2 . 36 7 . Failed 50 | . 10 . 13 . . . 14 13 . Catastrophic 4 | . 1 . . . . . 1 2 . Database Lockouts 1 | . . . 1 . . . . . . Manual 66 | . 8 . 21 . 1 . 23 13 . Terminals 97 | . 17 . 35 . . . 32 13 . Fabricators . | . . . . . . . . . . Repair Stations 10 | . . . . . . . 6 4 . Recycling Units 6 | . 1 . 3 . . . 2 . . Scanalyzers 14 | . . . 4 . . . 10 . . Garrison Access 3 | . . . . . . . . 3 . Terminal Hacks 43 | . 6 . 18 1 2 . 13 3 . Record 2 | . 1 . . . 1 . . . . Part Schematic 2 | . . . 2 . . . . . . Robot Analysis 5 | . 1 . 3 . . . 1 . . Prototype ID Bank 8 | . 1 . 3 . . . 4 . . Open Door 1 | . . . . 1 . . . . . Branch Access Points 3 | . 1 . 1 . . . . 1 . Emergency Access Points 5 | . . . 4 . . . 1 . . Terminal Index 5 | . 1 . 1 . . . 2 1 . Recycling Unit Index 1 | . . . 1 . . . . . . Scanalyzer Index 1 | . . . . . . . 1 . . Locate Traps 6 | . 1 . 2 . . . 2 1 . Recall Investigation 1 | . . . . . . . 1 . . Zone Layout 2 | . . . 1 . . . 1 . . EX-Prototype ID Bank 1 | . . . . . 1 . . . . Fabricator Hacks . | . . . . . . . . . . Repair Station Hacks 5 | . . . . . . . 5 . . Scan Component 3 | . . . . . . . 3 . . Repair 2 | . . . . . . . 2 . . Recycling Unit Hacks . | . . . . . . . . . . Scanalyzer 13 | . . . 4 . . . 9 . . Insert Component 5 | . . . 1 . . . 4 . . Analyze 8 | . . . 3 . . . 5 . . Garrison Access Hacks 2 | . . . . . . . . 2 . Seal Access 2 | . . . . . . . . 2 . Unauthorized Hacks 19 | . 2 . 6 . . . 9 2 . Terminals 13 | . 1 . 4 . . . 7 1 . Track 1 | . . . 1 . . . . . . Botnet 9 | . 1 . 2 . . . 5 1 . Operators 3 | . . . 1 . . . 2 . . Fabricators . | . . . . . . . . . . Repair Stations 1 | . . . . . . . . 1 . Mechanics 1 | . . . . . . . . 1 . Recycling Units 5 | . 1 . 2 . . . 2 . . Tunnel 5 | . 1 . 2 . . . 2 . . Scanalyzers . | . . . . . . . . . . Garrison Access . | . . . . . . . . . . Data Cores Recovered . | . . . . . . . . . . Used . | . . . . . . . . . . Hacking Detections 31 | . 6 . 13 . . . 8 4 . Full Trace Events 1 | . . . 1 . . . . . . Feedback Events . | . . . . . . . . . . Feedback Blocked . | . . . . . . . . . . Robot Schematics Acquired . | . . . . . . . . . . Robots Built . | . . . . . . . . . . Authchips . | . . . . . . . . . . Time . | . . . . . . . . . . Total Robot Build Rating . | . . . . . . . . . . Part Schematics Acquired 7 | . . . 3 . . . 4 . . Parts Built . | . . . . . . . . . . Authchips . | . . . . . . . . . . Time . | . . . . . . . . . . Total Part Build Rating . | . . . . . . . . . . Parts Repaired 2 | . . . . . . . 2 . . Time 190 | . . . . . . . 190 . . Parts Recycled . | . . . . . . . . . . Recycled Matter . | . . . . . . . . . . Retrieved Matter . | . . . . . . . . . . Retrieved Components . | . . . . . . . . . . Parts Scanalyzed 5 | . . . 1 . . . 4 . . Part Schematics Acquired 5 | . . . 1 . . . 4 . . Parts Damaged 2 | . . . . . . . 2 . . Bothacking | -11 -10 -10 -9 -9 -9 -8 -8 -7 -7 ------------ Run | Scr Mat Min Mat Min Exi Min Mat Fac Low Used RIF Installer . | . . . . . . . . . . Robots Hacked 4 | . . . . . 4 . . . . Non-combat 3 | . . . . . 3 . . . . Combat 1 | . . . . . 1 . . . . Robot Hacks Applied 4 | . . . . . 4 . . . . parse_system 4 | . . . . . 4 . . . . Relay Couplers Released . | . . . . . . . . . . Fabnet Peak Effective % . | . . . . . . . . . . Robots Rewired . | . . . . . . . . . . Allies Hacked . | . . . . . . . . . . Hacks Repelled . | . . . . . . . . . . Allies | -11 -10 -10 -9 -9 -9 -8 -8 -7 -7 -------- Run | Scr Mat Min Mat Min Exi Min Mat Fac Low Total Allies 1 | . . . . 1 . . . . . Largest Group 1 | . . . . 1 . . . . . Highest-Rated Group 31 | . . . . 31 . . . . . Highest-Rated Ally 31 | . . . . 31 . . . . . Total Orders 2 | . . . . . 2 . . . . RETURN 2 | . . . . . 2 . . . . Ally Attacks 129 | . . . . 9 108 . . . 12 Total Damage 764 | . . . . 84 612 . . . 68 Kills 5 | . . . . 3 1 . . . 1 Allies Corrupted . | . . . . . . . . . . Allies Melted . | . . . . . . . . . . Intel | -11 -10 -10 -9 -9 -9 -8 -8 -7 -7 ------- Run | Scr Mat Min Mat Min Exi Min Mat Fac Low Robot Analysis Total 5 | . 1 . 3 . . . 1 . . Derelict Logs Recovered 3 | . . 1 . 1 . . . . 1 Drone Launches 18 | . . . . . 14 . . . 4 Drone Recoveries 15 | . . . . . 13 . . . 2 Exploration | -11 -10 -10 -9 -9 -9 -8 -8 -7 -7 ------------- Run | Scr Mat Min Mat Min Exi Min Mat Fac Low Turns Passed 15706 | . 1574 982 3903 1516 1335 1526 2919 904 1047 Spaces Moved 6572 | 1 880 570 1488 622 478 582 1054 511 386 Core 1 | . . . . . . . . . 1 Treads 5355 | . 561 570 1488 622 478 582 1054 . . Legs 1216 | 1 319 . . . . . . 511 385 Wheels . | . . . . . . . . . . Hover . | . . . . . . . . . . Flight . | . . . . . . . . . . Fastest Speed 120 | 120 120 160 160 240 240 240 235 123 190 Average Speed 211 | 120 145 160 237 240 240 240 237 129 251 Slowest Speed 1150 | 120 160 160 240 240 240 240 240 260 1150 Overloaded Moves . | . . . . . . . . . . Propulsion Burnouts . | . . . . . . . . . . Robots Hopped . | . . . . . . . . . . Cave-ins Triggered . | . . . . . . . . . . Exploration Rate (%) 71 | 2 99 98 98 99 68 99 75 18 60 Regions Visited 9 Branch Regions 5 Pre-discovered Areas 7 | . 1 . 2 1 1 . 2 . . Known Exits Taken 3 | . 1 . 1 . . . . 1 . Unknown Exits Taken 6 | 1 . 1 . 1 1 1 1 . . Scrap Searched 3 | . . . . 1 . 1 . . 1 Spaces Dug 7 | . . . . . . . . 7 . Terrain Destroyed 189 | . 13 17 27 . 38 . 32 61 1 Melee . | . . . . . . . . . . Projectile 29 | . . . . . . . 23 5 1 AOE 160 | . 13 17 27 . 38 . 9 56 . Terrain Rammed . | . . . . . . . . . . Walls Destroyed . | . . . . . . . . . . Machines Disabled . | . . . . . . . . . . Actions | -11 -10 -10 -9 -9 -9 -8 -8 -7 -7 --------- Run | Scr Mat Min Mat Min Exi Min Mat Fac Low Total 7712 | . 1086 605 1737 636 610 634 1314 659 431 Wait 399 | . 137 3 68 1 53 3 103 19 12 Move 6563 | . 879 569 1487 621 477 581 1053 510 386 Hop . | . . . . . . . . . . Pick Up 78 | . 11 2 30 2 7 . 17 9 . Fast Attach 30 | . 1 . 6 2 . 1 7 13 . Attach 22 | . 2 . 3 . . 1 4 7 5 Detach 6 | . 1 . . . . . 1 3 1 Swap 73 | . 5 2 24 . 10 1 15 13 3 Drop 116 | . 5 3 37 4 15 1 27 23 1 Fire 415 | . 45 26 82 6 44 46 87 56 23 Melee 4 | . . . . . 4 . . . . Ram . | . . . . . . . . . . Kick 6 | . . . . . . . . 6 . Crush . | . . . . . . . . . . Escape Stasis . | . . . . . . . . . . Rewire . | . . . . . . . . . . Trap . | . . . . . . . . . . Miscellaneous . | . . . . . . . . . . Route ------- -11/Scrapyard -10/Materials (discovered 4 exits: *Mat x3 / *Min) -10/Mines (discovered 2 exits: *Mat x2) -9/Materials (discovered 4 exits: *Mat x3 / *Min) -9/Mines (discovered 3 exits: *Mat x2 / *Exi) -9/Exiles -8/Mines (discovered 2 exits: *Mat x2) -8/Materials (discovered 2 exits: *Fac x2) -7/Factory (discovered 5 exits: [*Fac] / Sto x2 / *Low x2) -7/Lower Caves History --------- Turn | Location | Event 1 | -11/Scrapyard | Discovered new exit (range 0) 1 | -11/Scrapyard | Entered Materials 314 | -10/Materials | Build established: Mutant 442 | -10/Materials | Discovered new exit (range 4) 904 | -10/Materials | Discovered new exit (range 16) 1103 | -10/Materials | Identified exit to Mines 1182 | -10/Materials | Discovered new exit (range 10) 1575 | -10/Materials | Entered Mines 1729 | -10/Mines | YI-UF0 nonchalantly dropped a Grenade Launcher on the ground 1754 | -10/Mines | Destroyed YI-UF0 1795 | -10/Mines | Found a hidden stash of uninstalled traps 1920 | -10/Mines | Discovered new exit (range 14) 2255 | -10/Mines | Learned Materials non-interactive machine intel 2287 | -10/Mines | A weapon hastily lodged in a ceiling crevice suddenly fell to the ground 2370 | -10/Mines | Discovered new exit (range 6) 2557 | -10/Mines | Entered Materials 2557 | -9/Materials | Evolved 2 slots: Propulsion x1, Utility x1 2558 | -9/Materials | Loaded intel: 49 non-interactive machine locations 2878 | -9/Materials | Discovered new exit (range 11) 3688 | -9/Materials | Discovered new exit (range 16) 4216 | -9/Materials | Discovered new exit (range 4) 4383 | -9/Materials | Discovered new exit (range 13) 4567 | -9/Materials | Central database locked down 5045 | -9/Materials | Build established: Scavenger-Mutant 5762 | -9/Materials | Identified exit to Mines 6064 | -9/Materials | Build established: Mutant 6460 | -9/Materials | Entered Mines 6463 | -9/Mines | Received a Mining Laser from a helpful Derelict 6497 | -9/Mines | Received a Rocket Launcher from a helpful Derelict 6623 | -9/Mines | Discovered new exit (range 9) 6673 | -9/Mines | Discovered new exit (range 10) 6860 | -9/Mines | Deemed a non-threat by the Exiles lab entrance 6863 | -9/Mines | Discovered new exit (range 5) 6982 | -9/Mines | Found the Drone Emporium 6993 | -9/Mines | Found Prototype Device 6993 | -9/Mines | Identified Thief Drone Bay 7976 | -9/Mines | Entered Exiles 8015 | -9/Exiles | Discovered new exit (range 15) 8041 | -9/Exiles | Met 8R-AWN 8187 | -9/Exiles | Met EX-HEX 8256 | -9/Exiles | Met EX-BIN 8284 | -9/Exiles | Aligned with FarCom system 8286 | -9/Exiles | Given EX-Vault access code 8344 | -9/Exiles | Opened EX-Vault 8401 | -9/Exiles | Warned to stay clear of 0b10 Research branches 8437 | -9/Exiles | Build established: Scavenger-Mutant 8471 | -9/Exiles | Met EX-DEC 8483 | -9/Exiles | Learned location of Zion (-7) 8579 | -9/Exiles | Visited The Gauntlet 8764 | -9/Exiles | Attacked by the Exiles 8930 | -9/Exiles | Found 8R-AWN's Boregun 9069 | -9/Exiles | Build established: Mutant 9071 | -9/Exiles | Allies destroyed 8R-AWN 9311 | -9/Exiles | Entered Mines 9746 | -8/Mines | Discovered new exit (range 11) 10139 | -8/Mines | Discovered new exit (range 12) 10837 | -8/Mines | Entered Materials 10837 | -8/Materials | Evolved 2 slots: Utility x2 11954 | -8/Materials | Build established: Hacker-Mutant 12257 | -8/Materials | Discovered new exit (range 4) 13240 | -8/Materials | Discovered new exit (range 8) 13588 | -8/Materials | Repaired Broken Exp. Heat Sink 13613 | -8/Materials | Repaired Broken Rnf. Fission Core? 13756 | -8/Materials | Entered Factory 13756 | -7/Factory | Evolved 2 slots: Utility x2 13842 | -7/Factory | Garrison activated, responded to threat 14009 | -7/Factory | Identified exit to Storage 14009 | -7/Factory | Identified exit to Lower Caves 14222 | -7/Factory | Discovered new exit (range 11) 14266 | -7/Factory | Build established: Hacker-Skirmisher 14339 | -7/Factory | Garrison activated, responded to threat 14343 | -7/Factory | Cargo convoy interrupted 14406 | -7/Factory | Found Prototype Processor 14406 | -7/Factory | Identified Exp. Signal Interpreter 14419 | -7/Factory | Destroyed 9 combat bots 14637 | -7/Factory | Core integrity fell below 50% 14660 | -7/Factory | Entered Lower Caves 14960 | -7/Lower Caves | Spotted B-75 Beast 14971 | -7/Lower Caves | Build established: Mutant 15256 | -7/Lower Caves | Learned location of 1 exit from Proximity Caves 15574 | -7/Lower Caves | Core integrity fell below 20% 15580 | -7/Lower Caves | Destroyed B-75 Beast 15678 | -7/Lower Caves | Attracted the attention of an 0b10 outpost 15707 | -7/Lower Caves | Destroyed by G-47 Trooper with Particle Gun Last Messages --------------- 15686_ Thief Drone delivers Autogun. 15686_ Thief Drone retrieved by Thief Drone Bay. 15686_ Thief Drone delivers Imp. Treads. 15686_ Thief Drone retrieved by Thief Drone Bay. 15690_ Thief Drone released from Thief Drone Bay. 15690_ Thief Drone sneak attacks. 15691_ Thief Drone released from Thief Drone Bay. 15692_ Thief Drone sneak attacks. 15692_ Y-64 Sentinel destroyed. 15692_ Fusion Reactor destroyed. 15693_ S-27 Virus destroyed. 15694_ Thief Drone destroyed. 15696_ B-48 Gladiator destroyed. 15697_ Autogun fries itself beyond repair. 15698_ Imp. Treads fries itself beyond repair. 15698_ VTOL Module fries itself beyond repair. 15698_ Adv. Myomer Leg destroyed. 15702_ L-41 Fighter destroyed. 15705_ Lgt. Nuclear Core fries itself beyond repair. 15707_ VTOL Module fries itself beyond repair. Map ----- +----------------------------------------------------+ | ?????????????????????????????????????????????????? | | ?????????????????????????????????????????????????? | | ????????????????????????????????????????????????# | | ???????????????????????????????????????????????? | | ????????????????????????????????????????????#### | | ???????????????????????????????????????????? | | ?????????????????????????????#?????????????? | | ??????????????????????????? #????????????? | | ???????????????? ?????????? ????????????? # | | ??????????????? ?????????? ??????##?????? # | | ???????????????? ?????????? ?????# ###???? | | ????????????????? ????????? ????? ????## | | ????????????????? #????????? ????# #???? | | ????????? ???????? #???????? #??# ?????? | | ?????????? ???????# ##??????? ## #??????# | | ?????????? ##???## ??????? #??##### | | ?????????? ### ??####?# #??# | | ?????????? s ??"""??# #### | | ???????????? ?? ??# #?# | | ?????????????? ?? ???# #??# | | ????????????????? ##+#???# #???# | | ???????????????????# g #???# #???## | | ??????????????????## n% #???# ##### | | ?????????????????## g% %###### | | ????????????????## !=%! % | | ????????????????# @ ###### | | ???????????????# #### ##????###### # | | ???????????????# ???# #??????????# ## | | ???????????????### ???# #??????????## #? | | ?????????????????#???# ##???????????# #? | | ?????????????????????# #???????????? #? | | ?????????????????????## #??????????? ? | | ??????????????????????# #?????????# # | | ??????????????????????# #????????? # | | ??????????????????????# ### ##???????? ## # | | ?????????????????????? #?# #???????? #?## | | ????????????????????? ? #??????? ??? | | ???????????????????? ? #?????? ## ??? | | ???????????????????#### ? ##??????# #?## #??? | | ??????????????????????##;######?????????????##???? | | ???????????????????????# ????????????????????????? | | ???????????????????????? ????????????????????????? | | ????????????????????????#????????????????????????? | | ?????????????????????????????????????????????????? | | ?????????????????????????????????????????????????? | | ?????????????????????????????????????????????????? | | ?????????????????????????????????????????????????? | | ?????????????????????????????????????????????????? | | ?????????????????????????????????????????????????? | | ?????????????????????????????????????????????????? | +----------------------------------------------------+ Best States ------------- Heat Dissipation 74 Coolant Potential 50 Energy Generation 23 Energy Capacity 295 Matter Stores 300 Matter Capacity 300 Sight Range 20 Robot Scan Range 15 Terrain Scan Density 10 Armor Coverage 375 Resistance: KI 20 Resistance: TH 20 Resistance: EX 20 Resistance: EM 20 Resistance: I 20 Resistance: S 20 Resistance: P 20 Utility Shielding 66 Evasion (%) 55 Recoil Reduction 3 Offensive Hacking 10 Defensive Hacking 10 Item Schematics ----------------- Mak. Spear | -9/Materials | Scanalyzed Plasma Cutter | -9/Materials | Hacked Imp. Treads | -9/Materials | Hacked Adv. Myomer Leg | -8/Materials | Scanalyzed Adv. Weapon Cycler | -8/Materials | Scanalyzed Rnf. Fission Core | -8/Materials | Scanalyzed Exp. Heat Sink | -8/Materials | Scanalyzed Robot Schematics ------------------ None Fabricated ------------ Nothing Alien Tech Used ----------------- None Achievements -------------- None Challenges ------------ None Game ------ Seed LightpackPhasingGuard Manual? 0 Play Time 01:05:13 Cumulative 197.7 hours Start 2022.05.17 @ 12:48:29 End 2022.05.17 @ 17:59:32 Sessions 3 Manual Loads 0 Difficulty Adventurer Special Mode None Game No. 98 Rogue 0 Adventurer 98 Explorer 0 Win Type - Total 14 Types 8/1/1/1/1/0/0/1/1 Lore% 88 Gallery% 85 Achievement% 75 Wizard Run 0 Options --------- ASCII 0 Keyboard 0 Movement Numpad Keybinds 0 Fullscreen 2 Font 18/SmallcapsGlow Map View 76x50 Tactical HUD 1 Map Filters NONE Filters NONE Steam 1 RUN: e3174614-76aa-4b2d-b634-5a21d34ee092